bitfinex-derivatives/quotes_BTCF0:USTF0_20251204
["timestamp","ask_amount","ask_price","bid_price","bid_amount"]
[1764817389901,0.33327,93937.0,93936.0,0.09131044]
[1764817390101,0.33327,93937.0,93936.0,0.07377044]
[1764817391194,0.33227,93937.0,93936.0,0.07377044]
[1764817391394,0.33227,93937.0,93936.0,0.04465044]
[1764817391601,0.33227,93937.0,93936.0,0.01623044]
[1764817391800,0.05583,93928.0,93927.0,0.05746965]
[1764817392401,0.05583,93928.0,93927.0,0.07347795]
[1764817392602,0.51939691,93937.0,93936.0,0.07485]
[1764817392798,0.27644,93937.0,93936.0,0.07485]
[1764817394001,0.03939,93943.0,93936.0,0.07485]
[1764817394002,0.03939,93943.0,93942.0,0.07485]
[1764817396106,0.03939,93943.0,93942.0,0.07585]
[1764817400114,0.0106427,93954.0,93945.0,0.05731]
[1764817400312,0.010643,93951.0,93945.0,0.05731]
[1764817401606,0.010643,93951.0,93945.0,0.05831]
[1764817403899,0.02868,93949.0,93945.0,0.05831]
[1764817404106,0.05598965,93946.0,93945.0,0.05831]
[1764817405509,0.05598965,93946.0,93945.0,0.05731]
[1764817405707,0.05598965,93946.0,93945.0,0.05831]
[1764817405916,0.02821965,93946.0,93945.0,0.05831]
[1764817408210,0.05598965,93946.0,93945.0,0.05831]
[1764817409707,0.05598965,93946.0,93945.0,0.03042]
[1764817409913,0.05598965,93946.0,93945.0,0.05831]
[1764817418119,0.00015965,93946.0,93945.0,0.05831]
[1764817418628,0.02883965,93946.0,93945.0,0.05831]
[1764817418828,0.05775965,93946.0,93930.0,0.14963333]
[1764817419018,0.05775965,93946.0,93945.0,0.0217]
[1764817420932,0.05822965,93946.0,93945.0,0.0217]
[1764817425028,0.05714,93931.0,93930.0,0.0323453]
[1764817425333,0.05714,93931.0,93930.0,0.0217]
[1764817426422,0.05714,93931.0,93930.0,0.0247]
[1764817427121,0.05714,93931.0,93930.0,0.0257]
[1764817435239,0.05714,93931.0,93930.0,0.004]
[1764817436025,0.05714,93931.0,93930.0,0.01485]
[1764817436231,0.05714,93931.0,93930.0,0.004]
[1764817436831,0.05714,93931.0,93930.0,0.0257]
[1764817439943,0.07425,93936.0,93935.0,0.0217]
[1764817440335,0.01711,93942.0,93935.0,0.0217]
[1764817440531,0.07425,93942.0,93941.0,0.0217]
[1764817442546,0.07425,93942.0,93941.0,0.0227]
[1764817444047,0.00015965,93946.0,93945.0,0.0323436]
[1764817445345,0.00015965,93946.0,93945.0,0.0333436]
[1764817446144,0.00015965,93946.0,93945.0,0.0323436]
[1764817447042,0.00015965,93946.0,93945.0,0.0217]
[1764817447235,0.00015965,93946.0,93945.0,0.0323436]
[1764817447432,0.02900965,93946.0,93945.0,0.0323436]
[1764817447941,0.05851965,93946.0,93945.0,0.0227]
[1764817449754,0.05851965,93946.0,93945.0,0.001]
[1764817451152,0.05851965,93946.0,93945.0,0.0227]
[1764817451449,0.05851965,93946.0,93945.0,0.0217]
[1764817462561,0.00015965,93946.0,93945.0,0.0217]
[1764817463059,0.00015965,93946.0,93945.0,0.1201]
[1764817463260,0.02885,93960.0,93959.0,0.032342]
[1764817463761,0.07477,93960.0,93959.0,0.032342]
[1764817463955,0.02885,93960.0,93959.0,0.032342]
[1764817464661,0.02900965,93969.0,93968.0,0.0217]
[1764817464863,0.00015965,93969.0,93968.0,0.0217]
[1764817466362,0.00901,93978.0,93977.0,0.0217]
[1764817466559,0.00901,93978.0,93977.0,0.03234]
[1764817466960,0.08378,93978.0,93977.0,0.03234]
[1764817467459,0.08378,93978.0,93977.0,0.03634]
[1764817467963,0.08378,93978.0,93977.0,0.03234]
[1764817468160,0.08378,93978.0,93977.0,0.03634]
[1764817468761,0.08378,93978.0,93977.0,0.03534]
[1764817469262,0.07477,93978.0,93977.0,0.03534]
[1764817469560,0.07477,93978.0,93977.0,0.0217]
[1764817469762,0.07477,93978.0,93977.0,0.003]
[1764817470162,0.05836,93962.0,93961.0,0.0979388]
[1764817471257,0.05836,93962.0,93961.0,0.0217]
[1764817471458,0.05836,93962.0,93961.0,0.0237]
[1764817472766,0.05836,93962.0,93961.0,0.0343418]
[1764817473262,0.05836,93962.0,93961.0,0.002]
[1764817474160,0.02885,93962.0,93961.0,0.0237]
[1764817474367,0.05871,93962.0,93961.0,0.0237]
[1764817475967,0.05871,93962.0,93960.0,0.0106418]
[1764817475968,0.07569,93966.0,93965.0,0.0217]
[1764817477370,0.07569,93966.0,93965.0,0.0247]
[1764817478771,0.07569,93966.0,93965.0,0.0217]
[1764817478963,0.07569,93966.0,93965.0,0.0247]
[1764817479367,0.07569,93966.0,93965.0,0.0217]
[1764817479671,0.07569,93966.0,93965.0,0.0247]
[1764817480574,0.07569,93966.0,93965.0,0.0217]
[1764817480875,0.0683,93970.0,93969.0,0.0217]
[1764817481374,0.05928,93970.0,93969.0,0.0217]
[1764817483074,0.04526,93972.0,93971.0,0.0217]
[1764817483276,0.07432,93972.0,93971.0,0.0217]
[1764817484468,0.05806942,93975.0,93974.0,0.0217]
[1764817484773,0.00015942,93975.0,93974.0,0.0217]
[1764817484967,0.05806942,93975.0,93974.0,0.0217]
[1764817485973,0.05806942,93975.0,93974.0,0.0227]
[1764817486776,0.00015942,93975.0,93974.0,0.1211]
[1764817487879,0.02900942,93975.0,93974.0,0.1211]
[1764817488576,0.05817594,94006.0,94005.0,0.0320168]
[1764817489372,0.05817594,94006.0,94005.0,0.04608316]
[1764817489776,0.05917594,94006.0,94005.0,0.04608316]
[1764817492888,0.00126594,94006.0,94005.0,0.04608316]
[1764817493278,0.03011594,94006.0,94005.0,0.04608316]
[1764817493689,0.05917594,94006.0,94005.0,0.04608316]
[1764817494189,0.03011594,94006.0,94005.0,0.04608316]
[1764817494378,0.00126594,94006.0,94005.0,0.04608316]
[1764817494782,0.00026574,94006.0,94005.0,0.14448316]
[1764817495880,0.01776,94014.0,94013.0,0.0106359]
[1764817496083,0.07567,94020.0,94019.0,0.0320152]
[1764817497486,0.07567,94020.0,94014.0,0.0106357]
[1764817497689,0.05791,94006.0,94005.0,0.04608316]
[1764817497990,0.05791,94006.0,94005.0,0.0320168]
[1764817498191,0.05791,94006.0,94005.0,0.04638296]
[1764817499291,0.05791,94006.0,94005.0,0.04938296]
[1764817499887,0.05791,94006.0,94005.0,0.05038296]
[1764817501879,0.05791,94006.0,94005.0,0.04938296]
[1764817502085,0.05791,94006.0,94005.0,0.05038296]
[1764817502688,0.07567,94014.0,94013.0,0.0320159]
[1764817504793,0.07567,94014.0,94013.0,0.0340159]
[1764817504991,0.07567,94014.0,94013.0,0.002]
[1764817505193,0.04682,94014.0,94006.0,0.0106367]
[1764817505490,0.05853,94007.0,94006.0,0.0106367]
[1764817505993,0.05853,93997.0,93996.0,0.00015957]
[1764817506196,0.0691677,93997.0,93996.0,0.01408277]
[1764817506396,0.05853,93975.0,93974.0,0.0610602]
[1764817506892,0.02907,93975.0,93974.0,0.0610602]
[1764817507196,0.07596,93978.0,93977.0,0.05857]
[1764817508293,0.07596,93978.0,93977.0,0.25846443]
[1764817508693,0.07596,93978.0,93977.0,0.26146443]
[1764817509588,0.07596,93978.0,93977.0,0.34534063]
[1764817509989,0.07596,93978.0,93977.0,0.34634063]
[1764817512100,0.07596,93978.0,93977.0,0.1464462]
[1764817512999,0.07596,93978.0,93977.0,0.1454462]
[1764817513197,0.07596,93978.0,93977.0,0.1464462]
[1764817513901,0.07596,93978.0,93977.0,0.1454462]
[1764817514996,0.07596,93978.0,93977.0,0.004]
[1764817515402,0.05853,93975.0,93974.0,0.01393871]
[1764817515595,0.05853,93971.0,93970.0,0.0106407]
[1764817515795,0.05853,93971.0,93970.0,0.0400307]
[1764817516596,0.05853,93971.0,93970.0,0.05442195]
[1764817516996,0.05853,93971.0,93970.0,0.01439125]
[1764817517205,0.05853,93971.0,93966.0,0.00026606]
[1764817517206,0.05853,93967.0,93966.0,0.00026606]
[1764817517404,0.05853,93966.0,93965.0,0.01410673]
[1764817517603,0.07596,93940.0,93939.0,0.05857]
[1764817518294,0.07609274,93940.0,93939.0,0.0727059]
[1764817518702,0.07609274,93940.0,93939.0,0.27260031]
[1764817518900,0.07609274,93940.0,93939.0,0.35840897]
[1764817519901,0.07609274,93940.0,93939.0,0.36140897]
[1764817520405,0.05866274,93940.0,93939.0,0.35940897]
[1764817520608,0.05866274,93940.0,93939.0,0.36240897]
[1764817521511,0.05866274,93940.0,93939.0,0.36140897]
[1764817521710,0.05866274,93940.0,93939.0,0.36240897]
[1764817522303,0.07609274,93940.0,93939.0,0.36240897]
[1764817524213,0.07609274,93940.0,93939.0,0.35940897]
[1764817524409,0.07609274,93940.0,93939.0,0.36240897]
[1764817525817,0.05866274,93940.0,93939.0,0.36140897]
[1764817526019,0.05866274,93940.0,93939.0,0.36240897]
[1764817529222,0.07609274,93940.0,93939.0,0.36240897]
[1764817529518,0.07609274,93940.0,93939.0,0.21803031]
[1764817529814,0.0691752,93931.0,93930.0,0.00015966]
[1764817530812,0.0691752,93931.0,93930.0,0.01426456]
[1764817531021,0.0701752,93931.0,93930.0,0.01426456]
[1764817531225,0.0701752,93931.0,93930.0,0.01526456]
[1764817531818,0.0701752,93931.0,93930.0,0.01426456]
[1764817532014,0.05953,93931.0,93930.0,0.01426456]
[1764817532322,0.05853,93931.0,93930.0,0.01426456]
[1764817532617,0.05953,93931.0,93930.0,0.01426456]
[1764817532821,0.05953,93931.0,93930.0,0.04365456]
[1764817533117,0.05853,93931.0,93930.0,0.01426456]
[1764817535614,0.06053,93931.0,93930.0,0.01426456]
[1764817536110,0.05853,93931.0,93930.0,0.01426456]
[1764817536312,0.05953,93931.0,93930.0,0.01426456]
[1764817536922,0.05853,93931.0,93930.0,0.07458456]
[1764817539129,0.02907,93931.0,93930.0,0.07458456]
[1764817539316,0.06054,93931.0,93930.0,0.07458456]
[1764817539515,0.06054,93931.0,93930.0,0.01426456]
[1764817539715,0.06054,93931.0,93930.0,0.07932456]
[1764817540922,0.01837274,93940.0,93930.0,0.07932456]
[1764817540923,0.06189274,93940.0,93939.0,0.0757043]
[1764817541125,0.03055274,93940.0,93939.0,0.0757043]
[1764817541629,0.06189274,93940.0,93939.0,0.0757043]
[1764817542028,0.00013274,93940.0,93939.0,0.0757043]
[1764817542232,0.00013274,93940.0,93939.0,0.0777043]
[1764817542618,0.03055274,93940.0,93939.0,0.0787043]
[1764817542819,0.00013274,93940.0,93939.0,0.0787043]
[1764817543029,0.03055274,93940.0,93939.0,0.0787043]
[1764817543326,0.06189274,93940.0,93939.0,0.0787043]
[1764817543721,0.06189274,93940.0,93939.0,0.06806]
[1764817543920,0.07253694,93940.0,93939.0,0.06806]
[1764817544929,0.09220694,93940.0,93939.0,0.03314]
[1764817545127,0.09220694,93940.0,93939.0,0.001]
[1764817546230,0.06176,93931.0,93930.0,0.04640456]
[1764817546732,0.06176,93931.0,93930.0,0.07932456]
[1764817548222,0.06176,93931.0,93930.0,0.08032456]
[1764817548826,0.06176,93938.0,93937.0,0.06506]
[1764817549328,0.06176,93931.0,93930.0,0.08132456]
[1764817550834,0.06176,93931.0,93930.0,0.07932456]
[1764817551421,0.06176,93931.0,93930.0,0.08032456]
[1764817551625,0.06176,93931.0,93930.0,0.08132456]
[1764817554823,0.06176,93931.0,93930.0,0.04840456]
[1764817555227,0.06176,93931.0,93930.0,0.08132456]
[1764817555423,0.00013274,93940.0,93930.0,0.01626456]
[1764817555633,0.00013274,93940.0,93939.0,0.06506]
[1764817556042,0.03055274,93940.0,93939.0,0.06506]
[1764817556244,0.00013274,93940.0,93939.0,0.06506]
[1764817557441,0.0106421,93959.0,93948.0,0.06506]
[1764817558240,0.0106416,93963.0,93948.0,0.0757033]
[1764817558930,0.0106416,93963.0,93944.0,0.01496]
[1764817558931,0.0724011,93967.0,93966.0,0.06506]
[1764817559132,0.09771807,93967.0,93966.0,0.06506]
[1764817559336,0.0724011,93967.0,93966.0,0.06506]
[1764817559537,0.0724011,93967.0,93966.0,0.03214]
[1764817560545,0.0724011,93967.0,93957.0,0.01080186]
[1764817560546,0.06176,93958.0,93957.0,0.06521966]
[1764817561245,0.06176,93958.0,93957.0,0.00015966]
[1764817563229,0.06176,93958.0,93957.0,0.00115966]
[1764817563834,0.06276,93958.0,93957.0,0.00015966]
[1764817564533,0.06276,93958.0,93957.0,0.06132966]
[1764817566842,0.06176,93958.0,93957.0,0.06132966]
[1764817567045,0.06176,93958.0,93957.0,0.06232966]
[1764817569546,0.06176,93958.0,93957.0,0.06132966]
[1764817569741,0.06176,93958.0,93957.0,0.06232966]
[1764817570145,0.06176,93958.0,93957.0,0.06332966]
[1764817570440,0.06176,93958.0,93957.0,0.06432966]
[1764817570835,0.06176,93958.0,93957.0,0.06332966]
[1764817571347,0.06176,93958.0,93957.0,0.06232966]
[1764817572843,0.06176,93958.0,93957.0,0.06132966]
[1764817573038,0.06176,93958.0,93957.0,0.06232966]
[1764817573244,0.05886,93970.0,93969.0,0.0618]
[1764817574643,0.05986,93970.0,93969.0,0.0618]
[1764817575447,0.001,93970.0,93969.0,0.0618]
[1764817576146,0.001,93970.0,93969.0,0.13817468]
[1764817576351,0.05901948,93976.0,93975.0,0.0618]
[1764817577044,0.03046948,93976.0,93975.0,0.0796]
[1764817577238,0.00015948,93976.0,93975.0,0.0796]
[1764817577439,0.06001948,93976.0,93975.0,0.0796]
[1764817578561,0.03146948,93976.0,93975.0,0.0796]
[1764817578850,0.00115948,93976.0,93975.0,0.0796]
[1764817579038,0.06001948,93976.0,93975.0,0.0796]
[1764817579847,0.06001948,93976.0,93975.0,0.0618]
[1764817582347,0.00115948,93976.0,93975.0,0.0902402]
[1764817582745,0.06001948,93976.0,93975.0,0.0902402]
[1764817583055,0.06001948,93976.0,93975.0,0.14875519]
[1764817583348,0.06001948,93976.0,93975.0,0.0724402]
[1764817583950,0.06001948,93976.0,93975.0,0.0618]
[1764817584837,0.05886,93971.0,93970.0,0.13811499]
[1764817585037,0.01825,93975.0,93963.0,0.07631499]
[1764817585038,0.05886,93964.0,93963.0,0.07631499]
[1764817585243,0.05886,93963.0,93962.0,0.13117]
[1764817585635,0.05886,93963.0,93962.0,0.1602]
[1764817586452,0.0695016,93963.0,93962.0,0.1602]
[1764817586835,0.0695016,93963.0,93962.0,0.1632]
[1764817587040,0.05886,93963.0,93962.0,0.1632]
[1764817587450,0.05886,93963.0,93962.0,0.1612]
[1764817588450,0.05886,93963.0,93962.0,0.1602]
[1764817589247,0.07711,93975.0,93974.0,0.0618]
[1764817589649,0.07711,93975.0,93963.0,0.0106415]
[1764817589650,0.05886,93964.0,93963.0,0.0724415]
[1764817590251,0.05886,93964.0,93963.0,0.0618]
[1764817590450,0.05886,93964.0,93963.0,0.0724416]
[1764817590853,0.05886,93964.0,93963.0,0.0628]
[1764817591847,0.05886,93975.0,93974.0,0.0618]
[1764817593155,0.05986,93975.0,93974.0,0.0618]
[1764817593655,0.001,93975.0,93974.0,0.0618]
[1764817594546,0.00015948,93976.0,93975.0,0.0850802]
[1764817595347,0.07625,93996.0,93995.0,0.05706]
[1764817595951,0.058,93996.0,93995.0,0.05706]
[1764817596152,0.027484,94031.0,93995.0,0.05706]
[1764817596153,0.05826594,94006.0,94005.0,0.05706]
[1764817596555,0.05826594,94006.0,94005.0,0.0676968]
[1764817598160,0.06026594,94006.0,94005.0,0.0676968]
[1764817598460,0.06626594,94006.0,94005.0,0.0676968]
[1764817598847,0.05826594,94006.0,94005.0,0.0676968]
[1764817599058,0.06126594,94006.0,94005.0,0.0676968]
[1764817602052,0.06126594,94006.0,94005.0,0.05706]
[1764817606366,0.00326594,94006.0,94005.0,0.05706]
[1764817606564,0.05743,94027.0,94026.0,0.05646]
[1764817606965,0.0680633,94037.0,94036.0,0.05646]
[1764817607563,0.0680633,94037.0,94036.0,0.02763]
[1764817607767,0.02806,94025.0,94024.0,0.07417]
[1764817608966,0.02906,94025.0,94024.0,0.07417]
[1764817609557,0.001,94025.0,94024.0,0.07417]
[1764817610666,0.02906,94025.0,94024.0,0.07417]
[1764817610968,0.001,94025.0,94024.0,0.07417]
[1764817611877,0.05843,94025.0,94024.0,0.07417]
[1764817612078,0.02906,94025.0,94024.0,0.07417]
[1764817612266,0.05843,94025.0,94024.0,0.07417]
[1764817614572,0.001,94025.0,94024.0,0.07417]
[1764817614960,0.02806,94035.0,94034.0,0.02883]
[1764817615165,0.02806,94035.0,94034.0,0.05646]
[1764817615370,0.05743,94035.0,94034.0,0.05646]
[1764817616073,0.05943,94035.0,94034.0,0.05646]
[1764817616978,0.06043,94035.0,94034.0,0.05646]
[1764817617376,0.003,94035.0,94034.0,0.05646]
[1764817617881,0.06043,94035.0,94034.0,0.02763]
[1764817618078,0.06043,94035.0,94034.0,0.05646]
[1764817619076,0.003,94035.0,94034.0,0.05646]
[1764817619283,0.03106,94035.0,94034.0,0.05646]
[1764817619685,0.06043,94035.0,94034.0,0.05646]
[1764817619881,0.00026583,94046.0,94045.0,0.07268]
[1764817620082,0.05769583,94046.0,94045.0,0.07268]
[1764817620387,0.0680598,94068.0,94067.0,0.05646]
[1764817620882,0.05743,94068.0,94067.0,0.07261299]
[1764817622183,0.06543,94068.0,94067.0,0.07261299]
[1764817622987,0.06543,94068.0,94067.0,0.01615299]
[1764817623185,0.05743,94059.0,94058.0,0.02778948]
[1764817623380,0.05743,94059.0,94058.0,0.05661948]
[1764817623685,0.07369,94059.0,94058.0,0.01587394]
[1764817623885,0.07369,94059.0,94058.0,0.00015948]
[1764817624077,0.07369,94059.0,94058.0,0.01620023]
[1764817624478,0.07869,94059.0,94058.0,0.01620023]
[1764817624875,0.07869,94059.0,94058.0,0.04450023]
[1764817625571,0.07869,94059.0,94058.0,0.01620023]
[1764817625776,0.0106326,94043.0,94031.0,0.0273438]
[1764817626077,0.05858,94032.0,94031.0,0.09902843]
[1764817626675,0.05858,94047.0,94046.0,0.05562]
[1764817627779,0.06936999,94056.0,94055.0,0.05562]
[1764817628775,0.02963889,94056.0,94055.0,0.05562]
[1764817628971,0.03463889,94056.0,94055.0,0.05562]
[1764817629172,0.06373889,94056.0,94055.0,0.05562]
[1764817629375,0.00515889,94056.0,94055.0,0.05562]
[1764817631582,0.06373889,94056.0,94055.0,0.05562]
[1764817634087,0.00515889,94056.0,94055.0,0.05562]
[1764817639085,0.03463889,94056.0,94055.0,0.05562]
[1764817639285,0.06373889,94056.0,94055.0,0.05562]
[1764817644394,0.05858,94074.0,94073.0,0.01296]
[1764817644590,0.05858,94074.0,94073.0,0.06858]
[1764817646091,0.05858,94074.0,94073.0,0.05562]
[1764817646294,0.05858,94067.0,94066.0,0.05562]
[1764817646793,0.05858,94065.0,94064.0,0.00015948]
[1764817646989,0.05858,94065.0,94064.0,0.05577948]
[1764817648397,0.06258,94065.0,94064.0,0.07248948]
[1764817650194,0.06258,94065.0,94064.0,0.00015948]
[1764817650590,0.03348,94065.0,94064.0,0.07248948]
[1764817650899,0.06258,94065.0,94064.0,0.05577948]
[1764817651789,0.004,94065.0,94064.0,0.05577948]
[1764817653792,0.06294,94065.0,94064.0,0.05577948]
[1764817656303,0.03348,94065.0,94064.0,0.06640968]
[1764817656596,0.03348,94065.0,94064.0,0.05577948]
[1764817656802,0.06294,94065.0,94064.0,0.05577948]
[1764817657197,0.004,94065.0,94064.0,0.06640968]
[1764817657503,0.03119,94065.0,94064.0,0.06640968]
[1764817658401,0.004,94065.0,94064.0,0.06640968]
[1764817659099,0.05691572,94086.0,94085.0,0.05901]
[1764817659810,0.08154853,94086.0,94085.0,0.05901]
[1764817660512,0.08554853,94086.0,94085.0,0.05901]
[1764817661206,0.06091572,94086.0,94085.0,0.05901]
[1764817661606,0.00426572,94086.0,94085.0,0.05901]
[1764817662400,0.05897572,94086.0,94085.0,0.05901]
[1764817662606,0.00426572,94086.0,94085.0,0.05901]
[1764817662805,0.05471,94074.0,94073.0,0.06967]
[1764817663000,0.065339,94074.0,94073.0,0.06967]
[1764817663502,0.00426572,94086.0,94085.0,0.05671]
[1764817663704,0.0653356,94105.0,94104.0,0.05671]
[1764817663900,0.08981259,94105.0,94104.0,0.05671]
[1764817664105,0.03510259,94105.0,94104.0,0.05671]
[1764817664304,0.0653356,94105.0,94104.0,0.05671]
[1764817664506,0.08979154,94105.0,94104.0,0.07239673]
[1764817665213,0.0106256,94105.0,94104.0,0.07239673]
[1764817665715,0.0653356,94105.0,94104.0,0.07239673]
[1764817666305,0.02503765,94113.0,94112.0,0.07423]
[1764817666504,0.05249765,94113.0,94112.0,0.07423]
[1764817666806,0.07974765,94113.0,94112.0,0.07423]
[1764817667203,0.07974765,94113.0,94112.0,0.05671]
[1764817667602,0.07974765,94113.0,94104.0,0.01568673]
[1764817667808,0.0653355,94105.0,94104.0,0.05671]
[1764817668007,0.0832365,94096.0,94095.0,0.00015939]
[1764817668211,0.0653365,94096.0,94095.0,0.07333311]
[1764817669017,0.0832365,94096.0,94095.0,0.01662311]
[1764817669916,0.0832365,94096.0,94095.0,0.02162311]
[1764817672613,0.0653365,94096.0,94095.0,0.07833311]
[1764817673004,0.0832365,94096.0,94095.0,0.02162311]
[1764817673612,0.0832365,94096.0,94095.0,0.01662311]
[1764817673811,0.0832365,94096.0,94095.0,0.02162311]
[1764817674918,0.0653399,94066.0,94065.0,0.05671]
[1764817675315,0.0380899,94066.0,94065.0,0.05671]
[1764817675624,0.0653399,94066.0,94065.0,0.07297959]
[1764817675821,0.0106295,94071.0,94070.0,0.05671]
[1764817676208,0.0001591,94075.0,94070.0,0.05671]
[1764817676412,0.0548691,94075.0,94074.0,0.05671]
[1764817676818,0.0001591,94075.0,94065.0,0.02826959]
[1764817677126,0.05471,94066.0,94065.0,0.07297959]
[1764817677720,0.0653399,94066.0,94065.0,0.07297959]
[1764817677919,0.0380894,94071.0,94065.0,0.01626959]
[1764817678217,0.0106294,94071.0,94070.0,0.05671]
[1764817679624,0.0106294,94071.0,94070.0,0.06271]
[1764817679924,0.065498,94075.0,94074.0,0.05671]
[1764817681129,0.065498,94075.0,94070.0,0.03542]
[1764817681130,0.0653394,94071.0,94070.0,0.03542]
[1764817681320,0.0653394,94071.0,94070.0,0.03442]
[1764817681515,0.0653394,94071.0,94070.0,0.005]
[1764817681722,0.0653399,94066.0,94065.0,0.01659683]
[1764817681918,0.0653409,94057.0,94056.0,0.05686939]
[1764817682922,0.0653409,94057.0,94056.0,0.07347303]
[1764817684223,0.0653409,94057.0,94056.0,0.01676303]
[1764817684428,0.0653409,94057.0,94046.0,0.00026583]
[1764817684429,0.0668621,94047.0,94046.0,0.00026583]
[1764817684631,0.05623,94046.0,94023.0,0.01767]
[1764817684829,0.05623,94046.0,94024.0,1.5]
[1764817685020,0.05623,94046.0,94045.0,0.01658288]
[1764817685215,0.05623,94046.0,94045.0,0.00010255]
[1764817685421,0.05623,94046.0,94045.0,0.01629794]
[1764817688925,0.05623,94046.0,94045.0,0.01729794]
[1764817689925,0.0668632,94037.0,94036.0,0.00015948]
[1764817690227,0.01343,94041.0,94006.0,0.05801594]
[1764817690228,0.0668666,94007.0,94006.0,0.05801594]
[1764817690417,0.0668666,94007.0,94006.0,0.02899594]
[1764817690619,0.0668666,94007.0,94006.0,0.00026594]
[1764817690820,0.0668666,94007.0,94006.0,0.01723685]
[1764817691023,0.06694569,94007.0,94006.0,0.00026594]
[1764817691227,0.06694569,94007.0,94006.0,0.01691831]
[1764817691625,0.06694569,94007.0,94006.0,0.02191831]
[1764817692232,0.06694569,94007.0,94006.0,0.01691831]
[1764817692431,0.06694569,94007.0,94006.0,0.02291831]
[1764817692823,0.05630909,94007.0,94006.0,0.08066831]
[1764817693934,0.02763909,94007.0,94006.0,0.08066831]
[1764817694330,0.02763909,94007.0,94006.0,0.02291831]
[1764817694331,0.05630909,94007.0,94006.0,0.02291831]
[1764817695035,0.05630909,94007.0,93997.0,0.00015948]
[1764817695036,0.0668676,93998.0,93997.0,0.00015948]
[1764817695338,0.0668676,93998.0,93997.0,0.01640217]
[1764817695524,0.0668676,93998.0,93997.0,0.00015948]
[1764817696430,0.0668676,93998.0,93997.0,0.01683977]
[1764817696631,0.0668676,93998.0,93997.0,0.05790948]
[1764817697031,0.038197,94004.0,94003.0,0.05775]
[1764817697435,7.909e-05,94007.0,94006.0,0.05775]
[1764817697635,0.02763909,94007.0,94006.0,0.05775]
[1764817698240,0.038193,94039.0,94038.0,0.05775]
[1764817698546,0.02756,94039.0,94038.0,0.05775]
[1764817698742,0.0668625,94044.0,94043.0,0.05775]
[1764817700746,0.0678625,94044.0,94043.0,0.05775]
[1764817703849,0.0668625,94044.0,94043.0,0.05775]
[1764817704050,0.05638957,94053.0,94052.0,0.05775]
[1764817704250,0.06702097,94053.0,94052.0,0.05775]
[1764817704848,0.01079097,94053.0,94052.0,0.05775]
[1764817705047,0.06702097,94053.0,94052.0,0.05775]
[1764817705251,0.06802097,94053.0,94052.0,0.05775]
[1764817706252,0.05623,94041.0,94040.0,0.02873]
[1764817706453,0.05623,94035.0,94034.0,0.05790957]
[1764817706856,0.0668622,94046.0,94045.0,0.05775]
[1764817707346,0.06712803,94046.0,94045.0,0.05775]
[1764817707751,0.01089803,94046.0,94045.0,0.05775]
[1764817708254,0.00026583,94046.0,94045.0,0.05775]
[1764817708453,0.00126583,94046.0,94045.0,0.05775]
[1764817709450,0.02882583,94046.0,94045.0,0.05775]
[1764817710647,0.05749583,94046.0,94045.0,0.05775]
[1764817710857,0.0668628,94041.0,94040.0,0.02873]
[1764817711060,0.0668628,94041.0,94040.0,0.05775]
[1764817711750,0.01189813,94046.0,94045.0,0.05775]
[1764817712256,0.03945813,94046.0,94045.0,0.05775]
[1764817712950,0.00026583,94046.0,94045.0,0.05775]
[1764817713551,0.00126583,94046.0,94045.0,0.05775]
[1764817714451,0.00015957,94053.0,94052.0,0.05653]
[1764817714656,0.00015957,94053.0,94052.0,0.0671615]
[1764817715949,0.00315957,94053.0,94052.0,0.0671615]
[1764817717850,0.0106302,94064.0,94050.0,0.01705]
[1764817717851,0.0106302,94064.0,94063.0,0.05521]
[1764817719053,0.006,94064.0,94063.0,0.05521]
[1764817724356,0.03364,94064.0,94063.0,0.05521]
[1764817724558,0.006,94064.0,94063.0,0.05521]
[1764817729559,0.06123,94064.0,94063.0,0.05521]
[1764817730053,0.006,94064.0,94063.0,0.05521]
[1764817733256,0.00015924,94073.0,94072.0,0.0842393]
[1764817734758,0.00015924,94073.0,94072.0,0.0862393]
[1764817735657,0.00015924,94073.0,94072.0,0.10302628]
[1764817736055,0.02779924,94073.0,94072.0,0.10302628]
[1764817736360,0.05538924,94073.0,94072.0,0.09239698]
[1764817736662,0.00015924,94073.0,94072.0,0.09239698]
[1764817736859,0.02779924,94073.0,94072.0,0.09239698]
[1764817737056,0.05538924,94073.0,94072.0,0.07574698]
[1764817737256,0.00015924,94073.0,94072.0,0.09239698]
[1764817737455,0.02779924,94073.0,94072.0,0.09239698]
[1764817738162,0.05538924,94073.0,94072.0,0.09239698]
[1764817738360,0.05538924,94073.0,94072.0,0.07574698]
[1764817738560,0.05538924,94073.0,94072.0,0.01878698]
[1764817739754,0.05538924,94073.0,94072.0,0.04633698]
[1764817739965,0.02779924,94073.0,94072.0,0.07461]
[1764817740162,0.00015924,94073.0,94072.0,0.07461]
[1764817740358,0.00015924,94073.0,94072.0,0.09144206]
[1764817741260,0.00015924,94073.0,94072.0,0.09044206]
[1764817741460,0.05538924,94073.0,94072.0,0.07379206]
[1764817741657,0.05538924,94073.0,94072.0,0.01683206]
[1764817741856,0.05523,94060.0,94059.0,0.07338]
[1764817742056,0.0106297,94068.0,94064.0,0.01665]
[1764817742256,0.0658597,94068.0,94067.0,0.05696]
[1764817744261,0.05689,94065.0,94064.0,0.002]
[1764817744456,0.05689,94065.0,94064.0,0.03043]
[1764817744762,0.05689,94065.0,94064.0,0.0586]
[1764817745163,0.05689,94065.0,94064.0,0.0566]
[1764817745361,0.05689,94065.0,94064.0,0.07381]
[1764817745560,0.02862,94065.0,94064.0,0.0844402]
[1764817745765,0.02862,94065.0,94064.0,0.07481]
[1764817745956,0.05689,94065.0,94064.0,0.0576]
[1764817746560,0.05689,94065.0,94064.0,0.001]
[1764817747372,0.0675206,94060.0,94059.0,0.01676888]
[1764817747663,0.0675212,94055.0,94054.0,0.00015949]
[1764817747864,0.0106332,94037.0,94036.0,0.07605684]
[1764817748070,0.05689,94036.0,94035.0,0.02843]
[1764817748368,0.05689,94036.0,94035.0,0.0566]
[1764817749073,0.02862,94036.0,94035.0,0.07371333]
[1764817749273,0.05689,94036.0,94035.0,0.07571333]
[1764817749770,0.02862,94036.0,94035.0,0.07571333]
[1764817749966,0.05689,94036.0,94035.0,0.07571333]
[1764817750662,0.05689,94036.0,94035.0,0.07371333]
[1764817750862,0.05689,94039.0,94035.0,0.01911333]